[Event "WGM Cvijet Mediterana 2019"]
[Site "Rijeka"]
[Date "2019.03.07"]
[Round "6.3"]
[White "Medic, Mirjana"]
[Black "Rakhmangulova, Anastasiya"]
[Result "1-0"]
[ECO "D05"]
[WhiteElo "2207"]
[BlackElo "2235"]
[Annotator "NA"]
[PlyCount "75"]
[EventDate "2019.03.03"]
[EventType "tourn"]
[EventCountry "CRO"]
[SourceTitle "playchess.com"]
[Source "ChessBase"]
[SourceQuality "1"]
[TimeControl "5400+30"]

1. d4 d5 2. Nf3 Nf6 3. e3 e6 4. Bd3 c5 5. b3 Nc6 $11 6. Bb2 Qa5+ 7. c3 Qc7 8. Nbd2 cxd4 9. exd4 Bd6 10. O-O g5 11. c4 g4 12. Ne5 h5 13. Re1 Bd7 14. cxd5 Nxd5 15. Ndc4 Bb4 16. Rf1 Rg8 17. Rc1 f6 18. Nxd7 Qxd7 19. a3 Bf8 20. b4 Nf4 21. Ne3 Ne7 22. Re1 Bh6 23. Rc5 Kf7 24. Bb5 Qd6 25. Qc2 b6 26. Rc7 Rac8 27. Rxe7+ Qxe7 28. Qh7+ Bg7 29. Nf5 Qd8 30. Nh6+ Ke7 31. Nxg8+ Kf8 32. Qe4 Qd6 33. Bc1 Nd5 34. Nh6 f5 35. Nxf5 Qc7 36. Nxg7 Kxg7 37. Bd2 Rf8 38. Bd3 1-0

[Event "WGM Cvijet Mediterana 2019"]
[Site "Rijeka"]
[Date "2019.03.07"]
[Round "6.4"]
[White "Hrescak, Ivana"]
[Black "Zimina, Olga"]
[Result "1/2-1/2"]
[ECO "D16"]
[WhiteElo "2128"]
[BlackElo "2387"]
[Annotator "NA"]
[PlyCount "80"]
[EventDate "2019.03.03"]
[EventType "tourn"]
[EventCountry "CRO"]
[SourceTitle "playchess.com"]
[Source "ChessBase"]
[SourceQuality "1"]
[TimeControl "5400+30"]

1. d4 d5 2. c4 c6 3. Nf3 Nf6 4. Nc3 dxc4 5. a4 e6 6. e3 c5 7. Bxc4 Nc6 8. O-O cxd4 9. exd4 Be7 10. h3 O-O 11. Be3 Nb4 12. Bf4 Bd7 $11 13. Ne5 Bc6 14. Bh2 Bd5 15. Be2 Rc8 16. Rc1 Qb6 17. Nxd5 Nbxd5 18. Nc4 Qb4 19. Qd3 Qxa4 20. Ra1 Qb4 21. Rxa7 b5 22. Na3 Qxb2 23. Nxb5 Nc3 24. Nxc3 Rxc3 25. Rb1 Rc1+ 26. Rxc1 Qxc1+ 27. Qd1 Qxd1+ 28. Bxd1 Rc8 29. Kf1 Nd5 30. Bf3 Bf6 31. Bxd5 exd5 32. Rd7 Rd8 33. Rxd8+ Bxd8 34. Ke2 h5 35. g4 Kh7 36. Bd6 Kg6 37. f4 f5 38. Kf3 Bb6 39. Be5 hxg4+ 40. hxg4 fxg4+ 1/2-1/2

[Event "WGM Cvijet Mediterana 2019"]
[Site "Rijeka"]
[Date "2019.03.07"]
[Round "6.5"]
[White "Vujnovic, Patricija"]
[Black "Miladinovic, Lena"]
[Result "0-1"]
[ECO "A52"]
[WhiteElo "2056"]
[BlackElo "2140"]
[Annotator "NA"]
[PlyCount "70"]
[EventDate "2019.03.03"]
[EventType "tourn"]
[EventCountry "CRO"]
[SourceTitle "playchess.com"]
[Source "ChessBase"]
[SourceQuality "1"]
[TimeControl "5400+30"]

1. d4 Nf6 2. c4 e5 3. dxe5 Ng4 4. Bf4 Bb4+ $14 5. Nc3 Nc6 6. Nf3 Qe7 7. Qd5 Bxc3+ 8. bxc3 f6 9. exf6 Nxf6 10. Qd3 d6 11. e3 Ne4 12. Nd4 Bd7 13. Be2 O-O-O 14. Bf3 Nc5 15. Qc2 Ne5 16. Be2 Rdf8 17. Bg3 h5 18. h3 g5 19. Rd1 h4 20. Bxe5 Qxe5 21. Nf3 Qf6 22. Rd4 Bf5 23. Qc1 Ne6 24. Rd5 g4 25. hxg4 Bxg4 26. Rf1 h3 27. Nh4 hxg2 28. Nxg2 Bxe2 29. Kxe2 Qf3+ 30. Ke1 Qxg2 31. Qa3 Rh1 32. Rxh1 Qxh1+ 33. Ke2 Qf3+ 34. Kd3 Qd1+ 35. Ke4 Qc2+ 0-1

[Event "WGM Cvijet Mediterana 2019"]
[Site "Rijeka"]
[Date "2019.03.07"]
[Round "7.4"]
[White "Djukic, Sandra"]
[Black "Medic, Mirjana"]
[Result "1/2-1/2"]
[ECO "A90"]
[WhiteElo "2157"]
[BlackElo "2207"]
[Annotator "NA"]
[PlyCount "26"]
[EventDate "2019.03.03"]
[EventType "tourn"]
[EventCountry "CRO"]
[SourceTitle "playchess.com"]
[Source "ChessBase"]
[SourceQuality "1"]
[TimeControl "5400+30"]

{[%evp 9,24,33,32767,32767,33,27,30,33,32767,29,32767,0,32767,32767,32767,32767,5]} 1. d4 {[%emt 0:00:30]} e6 {[%emt 0:00:30]} 2. c4 {[%emt 0:00:00]} f5 {[%emt 0:00:00]} 3. g3 {[%emt 0:00:00]} Nf6 {[%emt 0:00:00]} 4. Bg2 {[%emt 0:00:00]} d5 {[%emt 0:00:30]} 5. Nh3 {[%emt 0:01:00]} c6 {[%emt 0:00:00]} 6. Nd2 {[%emt 0:00:30]} Bd6 {[%emt 0:02:00]} 7. Qc2 {[%emt 0:03:30]} O-O {[%emt 0:00:30]} 8. O-O {[%emt 0:00:30]} b6 {[%emt 0:04:30]} 9. Nf3 {[%emt 0:01:30] LiveBook: 68 Games} Ne4 {[%emt 0:00:30]} 10. Nf4 {[%emt 0:02:30]} Qe7 {[%emt 0:01:30]} 11. b3 {[%emt 0:06:30]} Bb7 {[%emt 0:00:30]} 12. Bb2 {[%emt 0:06:30]} Nd7 $11 {[%emt 0:05:30]} 13. Nd3 {[%emt 0:09:30]} Rac8 {[%emt 0:16:30]} 1/2-1/2

[Event "WGM Cvijet Mediterana 2019"]
[Site "Rijeka"]
[Date "2019.03.08"]
[Round "8.2"]
[White "Medic, Mirjana"]
[Black "Tomilova, Elena"]
[Result "0-1"]
[ECO "D04"]
[WhiteElo "2207"]
[BlackElo "2300"]
[Annotator "RC"]
[PlyCount "60"]
[EventDate "2019.03.03"]
[EventType "tourn"]
[EventCountry "CRO"]
[SourceTitle "playchess.com"]
[Source "ChessBase"]
[SourceQuality "1"]
[TimeControl "5400+30"]

1. d4 {[%emt 0:00:30]} d5 {[%emt 0:00:30]} 2. Nf3 {[%emt 0:00:30]} Nf6 {[%emt 0:00:00]} 3. e3 {[%emt 0:00:30]} c6 {[%emt 0:01:00]} 4. Bd3 {[%emt 0:00:30]} Bg4 {[%emt 0:00:00]} 5. Nbd2 {[%emt 0:01:30]} Nbd7 {[%emt 0:01:00]} 6. h3 {[%emt 0:05:30]} Bh5 {[%emt 0:00:30]} 7. c4 {[%emt 0:10:30]} e6 {[%emt 0:00:30]} 8. Qc2 {[%emt 0:02:30]} Bd6 {[%emt 0:02:30]} 9. O-O {[%emt 0:05:30]} O-O {[%emt 0:01:30]} 10. e4 {[%emt 0:00:30]} dxe4 {[%emt 0:02:30]} 11. Nxe4 {[%emt 0:00:30]} Nxe4 {[%emt 0:01:30]} 12. Bxe4 {[%emt 0:00:00]} f5 {[%emt 0:00:30]} 13. Bg5 {[%emt 0:04:00]} Qe8 {[%emt 0:01:30]} 14. c5 {[%emt 0:09:30]} Bc7 {[%emt 0:07:30]} 15. Nd2 {[%emt 0:09:30]} fxe4 {[%emt 0:00:30]} 16. Nxe4 {[%emt 0:00:30]} Bg6 {[%emt 0:01:30]} 17. Rae1 {[%emt 0:00:30]} h6 {[%emt 0:03:30]} 18. Bh4 {[%emt 0:01:30]} Bxe4 {[%emt 0:06:30]} 19. Rxe4 {[%emt 0:00:30]} Nf6 {[%emt 0:00:30]} 20. Bxf6 {[%emt 0:00:30]} Rxf6 {[%emt 0:00:30]} 21. Qb3 {[%emt 0:00:30]} Qf7 {[%emt 0:02:30]} 22. f3 {[%emt 0:01:30]} Rd8 {[%emt 0:01:30]} 23. Rfe1 {[%emt 0:00:30]} Rd5 {[%emt 0:02:30]} 24. Qa4 {[%emt 0:01:30]} a6 {[%emt 0:01:30]} 25. Qb3 {[%emt 0:00:00]} Rg6 {[%emt 0:04:30]} 26. R1e2 {[%emt 0:01:00]} Kh8 {[%emt 0:04:30]} 27. Kf1 {[%emt 0:00:00]} Bg3 {[%emt 0:01:30]} 28. R2e3 {[%emt 0:01:00]} Qd7 {[%emt 0:03:30]} 29. Qd3 {[%emt 0:01:30]} Rf6 {[%emt 0:01:30]} 30. Qc4 {[%emt 0:00:30]} e5 {[%emt 0:01:30]} 0-1

[Event "WGM Cvijet Mediterana 2019"]
[Site "Rijeka"]
[Date "2019.03.08"]
[Round "8.3"]
[White "Hrescak, Ivana"]
[Black "Djukic, Sandra"]
[Result "1/2-1/2"]
[ECO "E46"]
[WhiteElo "2128"]
[BlackElo "2157"]
[Annotator "RC"]
[PlyCount "114"]
[EventDate "2019.03.03"]
[EventType "tourn"]
[EventCountry "CRO"]
[SourceTitle "playchess.com"]
[Source "ChessBase"]
[SourceQuality "1"]
[TimeControl "5400+30"]

1. d4 {[%emt 0:00:30]} Nf6 {[%emt 0:00:30]} 2. c4 {[%emt 0:00:00]} e6 {[%emt 0:00:00]} 3. Nc3 {[%emt 0:00:00]} Bb4 {[%emt 0:00:00]} 4. e3 {[%emt 0:00:00]} O-O {[%emt 0:00:00]} 5. Nge2 {[%emt 0:00:00]} Re8 {[%emt 0:00:00]} 6. a3 {[%emt 0:00:00]} Bf8 {[%emt 0:00:30]} 7. d5 {[%emt 0:00:00]} a5 {[%emt 0:00:30]} 8. g3 {[%emt 0:00:30]} Na6 {[%emt 0:00:30]} 9. Bg2 {[%emt 0:00:30]} Nc5 {[%emt 0:02:30]} 10. b3 {[%emt 0:00:30]} exd5 {[%emt 0:00:30]} 11. cxd5 {[%emt 0:04:30]} b6 {[%emt 0:00:00]} 12. O-O {[%emt 0:06:30]} Ba6 {[%emt 0:00:00]} 13. Qc2 {[%emt 0:09:30]} Bd3 {[%emt 0:09:30]} 14. Qd1 {[%emt 0:07:30]} Ba6 {[%emt 0:33:30]} 15. Bb2 {[%emt 0:18:30]} Nd3 {[%emt 0:04:30]} 16. Qc2 {[%emt 0:03:30]} Nxb2 {[%emt 0:18:30]} 17. Qxb2 {[%emt 0:00:00]} g6 {[%emt 0:06:30]} 18. Rfd1 {[%emt 0:06:00]} Bxe2 {[%emt 0:05:20]} 19. Qxe2 {[%emt 0:02:30]} Bc5 {[%emt 0:03:00]} 20. Qc4 {[%emt 0:05:30]} Bd6 {[%emt 0:02:08]} 21. Nb5 {[%emt 0:15:25]} Qe7 {[%emt 0:00:27]} 22. Rab1 {[%emt 0:08:16]} Rac8 {[%emt 0:00:44]} 23. b4 {[%emt 0:01:05]} axb4 {[%emt 0:01:15]} 24. axb4 {[%emt 0:00:02]} Ra8 {[%emt 0:07:26]} 25. Rdc1 {[%emt 0:05:09]} Rec8 {[%emt 0:00:26]} 26. h3 {[%emt 0:02:13]} h5 {[%emt 0:00:23]} 27. Rc2 {[%emt 0:02:44]} Ra4 {[%emt 0:01:52]} 28. Nxd6 {[%emt 0:00:54]} Qxd6 {[%emt 0:00:04]} 29. Qd4 {[%emt 0:00:55]} Re8 {[%emt 0:01:19]} 30. Qc4 {[%emt 0:01:16]} Ra7 {[%emt 0:02:02]} 31. Rbc1 {[%emt 0:00:23]} Ra4 {[%emt 0:00:53]} 32. Rb1 {[%emt 0:00:27]} Ra7 {[%emt 0:00:02]} 33. Qd4 {[%emt 0:00:20]} Ra4 {[%emt 0:00:59]} 34. Rd2 {[%emt 0:01:07]} Ra3 {[%emt 0:00:33]} 35. Rc2 {[%emt 0:00:36]} Ra4 {[%emt 0:00:22]} 36. Rc4 {[%emt 0:00:15]} Rea8 {[%emt 0:00:41]} 37. e4 {[%emt 0:00:29]} Re8 {[%emt 0:00:28]} 38. f4 {[%emt 0:00:08]} c5 {[%emt 0:00:22]} 39. dxc6 {[%emt 0:01:00]} Qxd4+ {[%emt 0:00:05]} 40. Rxd4 {[%emt 0:00:02]} dxc6 {[%emt 0:00:03]} 41. e5 {[%emt 0:00:33]} Nd5 {[%emt 0:01:26]} 42. Bxd5 {[%emt 0:00:36]} cxd5 {[%emt 0:00:09]} 43. Rxd5 {[%emt 0:00:12]} Rc8 {[%emt 0:00:11]} 44. Rd2 {[%emt 0:00:50]} Rc3 {[%emt 0:00:54]} 45. Kh2 {[%emt 0:00:42]} Raa3 {[%emt 0:00:15]} 46. Rg2 {[%emt 0:00:18]} h4 {[%emt 0:00:24]} 47. gxh4 {[%emt 0:00:26]} Rxh3+ {[%emt 0:00:03]} 48. Kg1 {[%emt 0:00:02]} Rxh4 {[%emt 0:00:04]} 49. e6 {[%emt 0:01:16]} fxe6 {[%emt 0:00:12]} 50. Rxg6+ {[%emt 0:00:24]} Kf7 {[%emt 0:00:03]} 51. f5 {[%emt 0:00:48]} Rah3 {[%emt 0:00:37]} 52. Kg2 {[%emt 0:00:29]} Rh2+ {[%emt 0:00:08]} 53. Kg3 {[%emt 0:00:33]} exf5 {[%emt 0:00:21]} 54. Rxb6 {[%emt 0:00:20]} R2h3+ {[%emt 0:03:02]} 55. Kg2 {[%emt 0:00:09]} Rh2+ {[%emt 0:00:02]} 56. Kg3 {[%emt 0:00:01]} R2h3+ {[%emt 0:01:07]} 57. Kg2 {[%emt 0:00:01]} Rh2+ {[%emt 0:00:34]} 1/2-1/2

[Event "WGM Cvijet Mediterana 2019"]
[Site "Rijeka"]
[Date "2019.03.08"]
[Round "8.4"]
[White "Vujnovic, Patricija"]
[Black "Rakhmangulova, Anastasiya"]
[Result "0-1"]
[ECO "A57"]
[WhiteElo "2056"]
[BlackElo "2235"]
[Annotator "RC"]
[PlyCount "114"]
[EventDate "2019.03.03"]
[EventType "tourn"]
[EventCountry "CRO"]
[SourceTitle "playchess.com"]
[Source "ChessBase"]
[SourceQuality "1"]
[TimeControl "5400+30"]

1. d4 {[%emt 0:15:30]} Nf6 {[%emt 0:00:30]} 2. c4 {[%emt 0:00:30]} c5 {[%emt 0:00:00]} 3. d5 {[%emt 0:00:30]} b5 {[%emt 0:00:00]} 4. Nd2 {[%emt 0:00:30]} bxc4 {[%emt 0:05:30]} 5. e4 {[%emt 0:04:30]} c3 {[%emt 0:00:30]} 6. bxc3 {[%emt 0:00:30]} d6 {[%emt 0:00:00]} 7. Bd3 {[%emt 0:00:30]} g6 {[%emt 0:00:00]} 8. Ne2 {[%emt 0:01:30]} Bg7 {[%emt 0:00:30]} 9. O-O {[%emt 0:00:00]} O-O {[%emt 0:00:30]} 10. Rb1 {[%emt 0:01:00]} Nfd7 {[%emt 0:02:30]} 11. f4 {[%emt 0:00:30]} Nb6 {[%emt 0:05:30]} 12. a4 {[%emt 0:01:30]} a5 {[%emt 0:11:30]} 13. Qb3 {[%emt 0:01:30]} N8d7 {[%emt 0:02:30]} 14. Bb5 {[%emt 0:00:30]} c4 {[%emt 0:10:30]} 15. Nxc4 {[%emt 0:00:30]} Nc5 {[%emt 0:00:30]} 16. Qc2 {[%emt 0:00:30]} Nxc4 {[%emt 0:00:30]} 17. Bxc4 {[%emt 0:00:00]} Nxe4 {[%emt 0:01:30]} 18. Be3 {[%emt 0:02:00]} Qc7 {[%emt 0:02:30]} 19. Bb5 {[%emt 0:01:30]} Bf5 {[%emt 0:05:30]} 20. Bd3 {[%emt 0:05:30]} Nxc3 {[%emt 0:02:30]} 21. Bxf5 {[%emt 0:00:30]} Nxe2+ {[%emt 0:00:00]} 22. Qxe2 {[%emt 0:00:30]} gxf5 {[%emt 0:00:00]} 23. Qd3 {[%emt 0:05:30]} Qd7 {[%emt 0:01:30]} 24. Bd4 {[%emt 0:01:30]} Qxa4 {[%emt 0:04:30]} 25. Bxg7 {[%emt 0:01:30]} Kxg7 {[%emt 0:00:30]} 26. Rf3 {[%emt 0:10:30]} Qe4 {[%emt 0:09:30]} 27. Qc3+ {[%emt 0:08:30]} f6 {[%emt 0:01:30]} 28. Re1 {[%emt 0:05:30]} Qxd5 {[%emt 0:00:30]} 29. Rxe7+ {[%emt 0:01:30]} Rf7 {[%emt 0:02:30]} 30. Rg3+ {[%emt 0:06:30]} Kf8 {[%emt 0:08:30]} 31. Rxf7+ {[%emt 0:00:30]} Qxf7 {[%emt 0:00:00]} 32. Qc6 {[%emt 0:00:30]} Qa7+ {[%emt 0:01:00]} 33. Kh1 {[%emt 0:00:30]} Re8 {[%emt 0:05:26]} 34. Qxd6+ {[%emt 0:02:30]} Qe7 {[%emt 0:00:08]} 35. Qxe7+ {[%emt 0:01:30]} Kxe7 {[%emt 0:00:05]} 36. Kg1 {[%emt 0:04:08]} Kd6 {[%emt 0:00:28]} 37. Kf2 {[%emt 0:02:22]} Kc5 {[%emt 0:01:26]} 38. Rg7 {[%emt 0:00:27]} Ra8 {[%emt 0:00:06]} 39. Ke3 {[%emt 0:06:04]} a4 {[%emt 0:01:41]} 40. Rc7+ {[%emt 0:00:12]} Kb6 {[%emt 0:01:01]} 41. Rc1 {[%emt 0:00:23]} a3 {[%emt 0:01:37]} 42. Kd4 {[%emt 0:00:25]} a2 {[%emt 0:01:07]} 43. Ra1 {[%emt 0:00:10]} Kb5 {[%emt 0:00:07]} 44. Kc3 {[%emt 0:00:34]} Ra3+ {[%emt 0:04:32]} 45. Kb2 {[%emt 0:00:05]} Kb4 {[%emt 0:00:04]} 46. Rxa2 {[%emt 0:03:37]} Rxa2+ {[%emt 0:00:05]} 47. Kxa2 {[%emt 0:00:02]} Kc3 {[%emt 0:00:05]} 48. Ka3 {[%emt 0:00:03]} h5 {[%emt 0:00:49]} 49. Ka4 {[%emt 0:01:52]} Kd4 {[%emt 0:06:48]} 50. Kb4 {[%emt 0:00:04]} Ke3 {[%emt 0:00:27]} 51. Kc4 {[%emt 0:00:25]} Kf2 {[%emt 0:03:17]} 52. Kd5 {[%emt 0:03:43]} Kxg2 {[%emt 0:00:09]} 53. Ke6 {[%emt 0:00:16]} Kxh2 {[%emt 0:01:04]} 54. Kxf5 {[%emt 0:00:59]} Kg3 {[%emt 0:00:07]} 55. Kg6 {[%emt 0:00:13]} Kxf4 {[%emt 0:00:25]} 56. Kxh5 {[%emt 0:00:07]} f5 {[%emt 0:00:06]} 57. Kh4 {[%emt 0:00:14]} Kf3 {[%emt 0:00:15]} 0-1

[Event "WGM Cvijet Mediterana 2019"]
[Site "Rijeka"]
[Date "2019.03.08"]
[Round "8.5"]
[White "Miladinovic, Lena"]
[Black "Zimina, Olga"]
[Result "0-1"]
[ECO "A20"]
[WhiteElo "2140"]
[BlackElo "2387"]
[Annotator "RC"]
[PlyCount "74"]
[EventDate "2019.03.03"]
[EventType "tourn"]
[EventCountry "CRO"]
[SourceTitle "playchess.com"]
[Source "ChessBase"]
[SourceQuality "1"]
[TimeControl "5400+30"]

1. c4 {[%emt 0:00:30]} e5 {[%emt 0:08:30]} 2. a3 {[%emt 0:00:00]} Nf6 {[%emt 0:00:30]} 3. e3 {[%emt 0:00:00]} c6 {[%emt 0:00:00]} 4. Nc3 {[%emt 0:00:30]} d5 {[%emt 0:00:00]} 5. d4 {[%emt 0:00:30]} exd4 {[%emt 0:04:30]} 6. exd4 {[%emt 0:00:00]} Be7 {[%emt 0:00:00]} 7. Nf3 {[%emt 0:01:00]} O-O {[%emt 0:00:00]} 8. Bd3 {[%emt 0:00:30]} dxc4 {[%emt 0:00:30]} 9. Bxc4 {[%emt 0:00:30]} Nbd7 {[%emt 0:00:00]} 10. O-O {[%emt 0:02:30]} Nb6 {[%emt 0:01:00]} 11. Ba2 {[%emt 0:01:30]} Bg4 {[%emt 0:00:30]} 12. Re1 {[%emt 0:02:30]} Bh5 {[%emt 0:03:30]} 13. Bf4 {[%emt 0:04:30]} Re8 {[%emt 0:00:30]} 14. Be5 {[%emt 0:05:30]} Bd6 {[%emt 0:07:30]} 15. Qd3 {[%emt 0:04:30]} Bg6 {[%emt 0:07:30]} 16. Qd2 {[%emt 0:02:30]} Bxe5 {[%emt 0:13:30]} 17. Nxe5 {[%emt 0:01:30]} Qd6 {[%emt 0:00:30]} 18. Qf4 {[%emt 0:14:30]} Nbd5 {[%emt 0:07:30]} 19. Qf3 {[%emt 0:08:30]} Rad8 {[%emt 0:03:30]} 20. h3 {[%emt 0:04:30]} Qe6 {[%emt 0:15:30]} 21. Kh2 {[%emt 0:11:30]} Qd6 {[%emt 0:03:30]} 22. Kg1 {[%emt 0:01:30]} Qe6 {[%emt 0:00:30]} 23. Kh2 {[%emt 0:00:30]} Qd6 {[%emt 0:06:31]} 24. Kg1 {[%emt 0:00:30]} Qf8 {[%emt 0:01:59]} 25. Bb3 {[%emt 0:03:30]} Rd6 {[%emt 0:01:54]} 26. Rac1 {[%emt 0:04:30]} Nc7 {[%emt 0:00:40]} 27. Qg3 {[%emt 0:03:30]} Ne6 {[%emt 0:03:29]} 28. Ba2 {[%emt 0:12:23]} Nh5 {[%emt 0:05:44]} 29. Nxg6 {[%emt 0:04:22]} hxg6 {[%emt 0:00:10]} 30. Qe5 {[%emt 0:01:58]} Nhf4 {[%emt 0:00:33]} 31. Rcd1 {[%emt 0:01:33]} Red8 {[%emt 0:04:06]} 32. Re4 {[%emt 0:00:40]} g5 {[%emt 0:00:40]} 33. Kh2 {[%emt 0:02:58]} Ng6 {[%emt 0:00:33]} 34. Qf5 {[%emt 0:00:44]} Ne7 {[%emt 0:00:46]} 35. Bxe6 {[%emt 0:00:48]} Nxf5 {[%emt 0:00:07]} 36. Bxf5 {[%emt 0:00:03]} g6 {[%emt 0:00:06]} 37. Bg4 {[%emt 0:00:12]} f5 {[%emt 0:00:09]} 0-1

[Event "WGM Cvijet Mediterana 2019"]
[Site "Rijeka"]
[Date "2019.03.09"]
[Round "9.2"]
[White "Rakhmangulova, Anastasiya"]
[Black "Miladinovic, Lena"]
[Result "1-0"]
[ECO "A04"]
[WhiteElo "2235"]
[BlackElo "2140"]
[Annotator "NA"]
[PlyCount "77"]
[EventDate "2019.03.03"]
[EventType "tourn"]
[EventCountry "CRO"]
[SourceTitle "playchess.com"]
[Source "ChessBase"]
[SourceQuality "1"]
[TimeControl "5400+30"]

1. Nf3 {[%emt 0:01:30]} c5 {[%emt 0:00:30]} 2. b3 {[%emt 0:00:30]} Nc6 {[%emt 0:00:00]} 3. e3 {[%emt 0:00:30]} a6 {[%emt 0:01:00]} 4. Bb2 {[%emt 0:01:30]} Nf6 {[%emt 0:01:30]} 5. c4 {[%emt 0:01:30]} e6 {[%emt 0:03:30]} 6. Be2 {[%emt 0:01:30]} d5 {[%emt 0:02:30]} 7. O-O {[%emt 0:00:30]} Bd6 {[%emt 0:01:30]} 8. d4 {[%emt 0:00:30]} cxd4 {[%emt 0:00:30]} 9. cxd5 {[%emt 0:02:30]} exd5 {[%emt 0:01:30]} 10. Nxd4 {[%emt 0:00:30]} O-O {[%emt 0:00:30]} 11. Nd2 {[%emt 0:04:30]} Re8 {[%emt 0:03:30]} 12. N2f3 {[%emt 0:08:30]} Bd7 {[%emt 0:02:30]} 13. Rc1 {[%emt 0:04:30]} Qe7 {[%emt 0:02:30]} 14. Nxc6 $11 {[%emt 0:09:30]} bxc6 {[%emt 0:00:30]} 15. Qd4 {[%emt 0:00:30]} Qf8 {[%emt 0:16:30]} 16. Bd3 {[%emt 0:12:30]} Ne4 {[%emt 0:03:30]} 17. Bxe4 {[%emt 0:05:30]} Rxe4 {[%emt 0:04:30]} 18. Qd3 {[%emt 0:00:30]} Qe7 {[%emt 0:04:30]} 19. g3 {[%emt 0:02:30]} h5 {[%emt 0:09:30]} 20. Nd4 {[%emt 0:06:30]} c5 {[%emt 0:08:30]} 21. Nf5 {[%emt 0:00:30]} Bxf5 {[%emt 0:05:30]} 22. Qxd5 {[%emt 0:00:30]} Bh3 {[%emt 0:03:30]} 23. Qxa8+ {[%emt 0:02:30]} Kh7 {[%emt 0:00:30]} 24. Qd5 {[%emt 0:09:30]} h4 {[%emt 0:02:30]} 25. Rfd1 {[%emt 0:03:30]} Re6 {[%emt 0:02:15]} 26. Rc4 {[%emt 0:01:06]} hxg3 {[%emt 0:03:42]} 27. hxg3 {[%emt 0:00:23]} g5 {[%emt 0:07:40]} 28. b4 {[%emt 0:08:54]} Bxg3 {[%emt 0:08:17]} 29. Qd3+ {[%emt 0:00:05]} f5 {[%emt 0:01:01]} 30. fxg3 {[%emt 0:05:44]} Rxe3 {[%emt 0:00:17]} 31. Qd7 {[%emt 0:00:11]} Re1+ {[%emt 0:00:08]} 32. Kh2 {[%emt 0:00:13]} Re2+ {[%emt 0:00:03]} 33. Kxh3 {[%emt 0:01:05]} g4+ {[%emt 0:00:08]} 34. Rxg4 {[%emt 0:00:04]} fxg4+ {[%emt 0:00:11]} 35. Kxg4 {[%emt 0:03:27]} Re4+ {[%emt 0:00:56]} 36. Kh3 {[%emt 0:00:17]} cxb4 {[%emt 0:00:24]} 37. Qf5+ {[%emt 0:00:40]} Kg8 {[%emt 0:01:06]} 38. Qg6+ {[%emt 0:00:08]} Kf8 {[%emt 0:00:09]} 39. Rf1+ {[%emt 0:00:05]} 1-0

[Event "WGM Cvijet Mediterana 2019"]
[Site "Rijeka"]
[Date "2019.03.09"]
[Round "9.3"]
[White "Djukic, Sandra"]
[Black "Vujnovic, Patricija"]
[Result "1/2-1/2"]
[ECO "D30"]
[WhiteElo "2157"]
[BlackElo "2056"]
[Annotator "NA"]
[PlyCount "100"]
[EventDate "2019.03.03"]
[EventType "tourn"]
[EventCountry "CRO"]
[SourceTitle "playchess.com"]
[Source "ChessBase"]
[SourceQuality "1"]
[TimeControl "5400+30"]

1. d4 {[%emt 0:00:30]} d5 {[%emt 0:00:30]} 2. c4 {[%emt 0:00:00]} e6 {[%emt 0:00:30]} 3. Nf3 {[%emt 0:01:00]} c6 {[%emt 0:00:00]} 4. Nbd2 {[%emt 0:02:30]} Nf6 {[%emt 0:00:00]} 5. e3 {[%emt 0:00:00]} Nbd7 {[%emt 0:01:30]} 6. b3 {[%emt 0:01:00]} Bd6 {[%emt 0:01:30]} 7. Bb2 {[%emt 0:02:30]} Qc7 {[%emt 0:01:30]} 8. Qc2 {[%emt 0:10:30]} b6 {[%emt 0:00:00]} 9. Rc1 {[%emt 0:06:30]} Bb7 {[%emt 0:01:00]} 10. cxd5 {[%emt 0:05:30]} exd5 {[%emt 0:00:00]} 11. Bd3 $11 {[%emt 0:00:00]} Rc8 {[%emt 0:02:00]} 12. O-O {[%emt 0:03:00]} O-O {[%emt 0:00:00]} 13. h3 {[%emt 0:17:30]} Rfe8 {[%emt 0:01:00]} 14. Rfd1 {[%emt 0:08:30]} Qd8 {[%emt 0:02:30]} 15. Re1 {[%emt 0:07:30]} h6 {[%emt 0:02:30]} 16. Qb1 {[%emt 0:01:30]} Re7 {[%emt 0:03:30]} 17. Nh4 {[%emt 0:05:30]} Re8 {[%emt 0:00:30]} 18. Nf5 {[%emt 0:02:30]} Bf8 {[%emt 0:00:30]} 19. Ng3 {[%emt 0:01:30]} Bd6 {[%emt 0:01:30]} 20. Ndf1 {[%emt 0:07:56]} Bf8 {[%emt 0:03:30]} 21. Bc3 {[%emt 0:02:44]} Rc7 {[%emt 0:00:30]} 22. a4 {[%emt 0:03:20]} c5 {[%emt 0:03:30]} 23. dxc5 {[%emt 0:03:35]} Nxc5 {[%emt 0:00:30]} 24. Bb5 {[%emt 0:04:53]} Re6 {[%emt 0:00:30]} 25. Red1 {[%emt 0:01:46]} a6 {[%emt 0:01:30]} 26. Be2 {[%emt 0:00:04]} Nce4 {[%emt 0:02:30]} 27. Bd4 {[%emt 0:00:34]} Ba3 {[%emt 0:02:30]} 28. Rxc7 {[%emt 0:00:04]} Qxc7 {[%emt 0:00:00]} 29. Qa1 {[%emt 0:00:55]} Bf8 {[%emt 0:01:00]} 30. Rc1 {[%emt 0:00:26]} Rc6 {[%emt 0:00:30]} 31. Rxc6 {[%emt 0:00:09]} Qxc6 {[%emt 0:00:30]} 32. Qb2 {[%emt 0:01:06]} Bc8 {[%emt 0:00:30]} 33. f3 {[%emt 0:00:42]} Nxg3 {[%emt 0:01:30]} 34. Nxg3 {[%emt 0:00:03]} Ne8 {[%emt 0:01:30]} 35. Kf2 {[%emt 0:00:58]} g6 {[%emt 0:02:30]} 36. Qc3 {[%emt 0:00:29]} Qxc3 {[%emt 0:00:30]} 37. Bxc3 {[%emt 0:00:04]} Bg7 {[%emt 0:01:30]} 38. Bxg7 {[%emt 0:00:36]} Kxg7 {[%emt 0:00:00]} 39. Ke1 {[%emt 0:00:44]} Nd6 {[%emt 0:00:00]} 40. Kd2 {[%emt 0:00:08]} Kf6 {[%emt 0:00:30]} 41. Kc3 {[%emt 0:00:07]} Ke5 {[%emt 0:00:30]} 42. f4+ {[%emt 0:01:00]} Ke6 {[%emt 0:00:30]} 43. Kd4 {[%emt 0:00:56]} Bb7 {[%emt 0:02:30]} 44. Bd3 {[%emt 0:00:33]} a5 {[%emt 0:02:30]} 45. f5+ {[%emt 0:00:32]} gxf5 {[%emt 0:02:30]} 46. Nh5 {[%emt 0:00:07]} Ne4 {[%emt 0:00:30]} 47. Ng7+ {[%emt 0:00:51]} Kf6 {[%emt 0:00:00]} 48. Nh5+ {[%emt 0:00:13]} Ke6 {[%emt 0:00:00]} 49. Ng7+ {[%emt 0:00:34]} Kf6 {[%emt 0:00:30]} 50. Nh5+ {[%emt 0:00:34]} Ke6 {[%emt 0:00:00]} 1/2-1/2